fUSD/lending_fUSD_20241203
["ID","MTS","AMOUNT","RATE_DAILY","PERIOD"]
[344016504,1733207653686,-500.0,0.00025,120]
[344016505,1733207653724,-633.62,0.00025,120]
[344016506,1733207653764,-500.0,0.00025,120]
[344016507,1733207653799,-500.0,0.00025,120]
[344016508,1733207653835,-590.83,0.00025,120]
[344016509,1733207653871,-500.0,0.00025,120]
[344016510,1733207653909,-3776.39,0.00025,120]
[344016511,1733207653945,-500.0,0.00025,120]
[344016512,1733207653985,-1221.71,0.00025,120]
[344016513,1733207654023,-500.0,0.00025,120]
[344016514,1733207654062,-2552.76,0.00025,120]
[344016515,1733207654099,-1104.91,0.00025,120]
[344016516,1733207654135,-500.0,0.00025,120]
[344016517,1733207654174,-1541.64,0.00025,120]
[344016518,1733207654210,-2129.67,0.00025,120]
[344016519,1733207654248,-1764.28,0.00025,120]
[344016520,1733207654285,-500.0,0.00025,120]
[344016521,1733207654322,-877.7,0.00025,120]
[344016522,1733207654359,-500.0,0.00025,120]
[344016523,1733207654396,-1592.39,0.00025,120]
[344016524,1733207654434,-13105.26,0.00025,120]
[344016525,1733207654475,-500.0,0.00025,120]
[344016526,1733207654514,-687.3,0.00025,120]
[344016527,1733207654550,-500.0,0.00025,120]
[344016528,1733207654586,-500.0,0.00025,120]
[344016529,1733207654625,-5241.16,0.00025,120]
[344016530,1733207654664,-500.0,0.00025,120]
[344016531,1733207654702,-1415.18,0.00025,120]
[344016532,1733207654742,-500.0,0.00025,120]
[344016533,1733207654781,-500.0,0.00025,120]
[344016534,1733207654819,-4139.93,0.00025,120]
[344016535,1733207654857,-919.41,0.00025,120]
[344016536,1733207654895,-6928.41,0.00025,120]
[344016537,1733207654933,-666.63,0.00025,120]
[344016538,1733207654972,-500.0,0.00025,120]
[344016539,1733207655014,-3125.86,0.00025,120]
[344016540,1733207655054,-5046.38,0.00025,120]
[344016541,1733207655095,-773.76,0.00025,120]
[344016542,1733207655133,-2347.94,0.00025,120]
[344016543,1733207655172,-1956.62,0.00025,120]
[344016544,1733207655212,-5027.77,0.00025,120]
[344016545,1733207655251,-500.0,0.00025,120]
[344016546,1733207655292,-2311.61,0.00025,120]
[344016547,1733207655332,-500.0,0.00025,120]
[344016548,1733207655372,-968.89,0.00025,120]
[344016549,1733207655412,-730.98,0.00025,120]
[344016550,1733207655450,-2705.9,0.00025,120]
[344016551,1733207655492,-706.2,0.00025,120]
[344016552,1733207655534,-1657.59,0.00025,120]
[344016553,1733207655571,-1154.24,0.00025,120]
[344016554,1733207655608,-638.04,0.00025,120]
[344016555,1733207655646,-2154.24,0.00025,120]
[344016556,1733207655685,-1477.05,0.00025,120]
[344016557,1733207655723,-1204.64,0.00025,120]
[344016558,1733207655763,-2653.74,0.00025,120]
[344016559,1733207655803,-1504.41,0.00025,120]
[344016560,1733207655840,-505.54504104,0.00025,120]
[344016561,1733207655878,-1199.48,0.00025,120]
[344016562,1733207655917,-500.0,0.00025,120]
[344016563,1733207655956,-500.07858225,0.00025,120]
[344016564,1733207655996,-512.99535564,0.00025,120]
[344016565,1733207656037,-694.79,0.00025,120]
[344016566,1733207656077,-3674.86,0.00025,120]
[344016567,1733207656118,-500.0,0.00025,120]
[344016568,1733207656158,-652.21,0.00025,120]
[344016569,1733207656199,-3686.87,0.00025,120]
[344016570,1733207656243,-500.0,0.00025,120]
[344016571,1733207656287,-500.0,0.00025,120]
[344016572,1733207656328,-500.0,0.00025,120]
[344016573,1733207656371,-1629.05,0.00025,120]
[344016574,1733207656410,-500.0,0.00025,120]
[344016575,1733207656449,-540.12,0.00025,120]
[344016576,1733207656494,-1222.03,0.00025,120]
[344016577,1733207656533,-500.0,0.00025,120]
[344016578,1733207656571,-1560.28,0.00025,120]
[344016579,1733207656608,-500.0,0.00025,120]
[344016580,1733207656646,-1081.68,0.00025,120]
[344016581,1733207656683,-500.0,0.00025,120]
[344016582,1733207656719,-500.0,0.00025,120]
[344016583,1733207656760,-1483.08,0.00025,120]
[344016584,1733207656803,-500.0,0.00025,120]
[344016585,1733207656843,-500.0,0.00025,120]
[344016586,1733207656882,-160.9024091,0.00025,120]
[344016587,1733207656922,-1347.55,0.00025,120]
[344016588,1733207656963,-500.0,0.00025,120]
[344016589,1733207657301,-769.01,0.00025,120]
[344016590,1733207657342,-500.0,0.00025,120]
[344016591,1733207657381,-16169.68,0.00025,120]
[344016592,1733207657421,-13752.05,0.00025,120]
[344016593,1733207657460,-1559.7,0.00025,120]
[344016594,1733207657499,-500.0,0.00025,120]
[344016595,1733207657539,-6588.13,0.00025,120]
[344016596,1733207657579,-314.63130335,0.00025,120]
[344016597,1733207657620,-1230.84,0.00025,120]
[344016598,1733207657660,-668.19,0.00025,120]
[344016599,1733207657697,-500.0,0.00025,120]
[344016600,1733207657735,-691.12,0.00025,120]
[344016601,1733207657777,-500.0,0.00025,120]
[344016602,1733207657816,-500.0,0.00025,120]
[344016603,1733207657855,-271.65795337,0.00025,120]
[344016604,1733207657893,-500.0,0.00025,120]
[344016605,1733207657931,-500.0,0.00025,120]
[344016606,1733207657977,-2192.0,0.00025,120]
[344016607,1733207658021,-1155.84,0.00025,120]
[344016608,1733207658065,-500.0,0.00025,120]
[344016609,1733207658105,-732.8,0.00025,120]
[344016610,1733207658144,-989.91,0.00025,120]
[344016611,1733207658185,-500.0,0.00025,120]
[344016612,1733207658224,-732.8,0.00025,120]
[344016613,1733207658265,-732.8,0.00025,120]
[344016614,1733207658305,-2492.14,0.00025,120]
[344016615,1733207658343,-732.8,0.00025,120]
[344016616,1733207658383,-579.1,0.00025,120]
[344016617,1733207658423,-732.8,0.00025,120]
[344016618,1733207658463,-2426.64,0.00025,120]
[344016619,1733207658503,-732.8,0.00025,120]
[344016620,1733207658549,-1019.59,0.00025,120]
[344016621,1733207658592,-732.8,0.00025,120]
[344016622,1733207658634,-500.0,0.00025,120]
[344016623,1733207658674,-732.8,0.00025,120]
[344016624,1733207658718,-732.8,0.00025,120]
[344016625,1733207658757,-732.8,0.00025,120]
[344016626,1733207658798,-500.0,0.00025,120]
[344016627,1733207658836,-1685.91,0.00025,120]
[344016628,1733207658877,-1015.28,0.00025,120]
[344016629,1733207658915,-7446.32,0.00025,120]
[344016630,1733207658955,-515.92578291,0.00025,120]
[344016631,1733207659001,-314.55288508,0.00025,120]
[344016632,1733207659045,-3524.31,0.00025,120]
[344016633,1733207659084,-847.77,0.00025,120]
[344016634,1733207659125,-500.0,0.00025,120]
[344016635,1733207659165,-500.0,0.00025,120]
[344016636,1733207659205,-608.07,0.00025,120]
[344016637,1733207659250,-513.54796129,0.00025,120]
[344016638,1733207659289,-313.79011714,0.00025,120]
[344016639,1733207659328,-500.0,0.00025,120]
[344016640,1733207659368,-1851.23,0.00025,120]
[344016641,1733207659407,-732.8,0.00025,120]
[344016642,1733207659446,-500.0,0.00025,120]
[344016643,1733207659494,-732.8,0.00025,120]
[344016644,1733207659542,-500.0,0.00025,120]
[344016645,1733207659585,-732.8,0.00025,120]
[344016646,1733207659626,-637.04314387,0.00025,120]
[344016647,1733207659666,-2339.64,0.00025,120]
[344016648,1733207659707,-732.8,0.00025,120]
[344016649,1733207659755,-732.8,0.00025,120]
[344016650,1733207659794,-930.4,0.00025,120]
[344016651,1733207659833,-732.8,0.00025,120]
[344016652,1733207659872,-732.8,0.00025,120]
[344016653,1733207659910,-500.0,0.00025,120]
[344016654,1733207659949,-732.8,0.00025,120]
[344016655,1733207659990,-732.8,0.00025,120]
[344016656,1733207660029,-732.8,0.00025,120]
[344016657,1733207660069,-206.44700837,0.00025,120]
[344016658,1733207660109,-504.19109352,0.00025,120]
[344016659,1733207660148,-732.8,0.00025,120]
[344016660,1733207660187,-732.8,0.00025,120]
[344016661,1733207660225,-2293.63,0.00025,120]
[344016662,1733207660266,-732.8,0.00025,120]
[344016663,1733207660305,-1399.09,0.00025,120]
[344016664,1733207660343,-500.0,0.00025,120]
[344016665,1733207660381,-1540.02,0.00025,120]
[344016666,1733207660418,-732.92883227,0.00025,120]
[344016667,1733207660456,-4529.13,0.00025,120]
[344016668,1733207660497,-1162.03,0.00025,120]
[344016669,1733207660535,-500.0,0.00025,120]
[344016670,1733207660572,-3925.43,0.00025,120]
[344016671,1733207660610,-500.0,0.00025,120]
[344016672,1733207660646,-314.40175212,0.00025,120]
[344016673,1733207660683,-500.0,0.00025,120]
[344016674,1733207660720,-500.0,0.00025,120]
[344016675,1733207660758,-1128.01,0.00025,120]
[344016676,1733207660795,-3003.71,0.00025,120]
[344016677,1733207660832,-500.0,0.00025,120]
[344016678,1733207660869,-500.0,0.00025,120]
[344016679,1733207660906,-500.0,0.00025,120]
[344016680,1733207660945,-500.0,0.00025,120]
[344016681,1733207660983,-3678.91,0.00025,120]
[344016682,1733207661025,-694.88,0.00025,120]
[344016683,1733207661065,-2022.5,0.00025,120]
[344016684,1733207661370,-955.58,0.00025,120]
[344016685,1733207661407,-2530.91,0.00025,120]
[344016686,1733207661443,-500.0,0.00025,120]
[344016687,1733207661479,-980.03,0.00025,120]
[344016688,1733207661518,-500.0,0.00025,120]
[344016689,1733207661556,-1166.54,0.00025,120]
[344016690,1733207661594,-1609.37,0.00025,120]
[344016691,1733207661630,-500.0,0.00025,120]
[344016692,1733207661668,-3903.06,0.00025,120]
[344016693,1733207661709,-713.61,0.00025,120]
[344016694,1733207661750,-1094.44,0.00025,120]
[344016695,1733207661787,-520.05063025,0.00025,120]
[344016696,1733207661823,-500.0,0.00025,120]
[344016697,1733207661861,-500.0,0.00025,120]
[344016698,1733207661898,-500.0,0.00025,120]
[344016699,1733207661935,-890.94,0.00025,120]
[344016700,1733207661971,-528.06,0.00025,120]
[344016701,1733207662008,-500.0,0.00025,120]
[344016702,1733207662047,-2218.1,0.00025,120]
[344016703,1733207662084,-500.0,0.00025,120]
[344016704,1733207662121,-3990.07,0.00025,120]
[344016705,1733207662158,-500.0,0.00025,120]
[344016706,1733207662194,-500.0,0.00025,120]
[344016707,1733207662232,-500.0,0.00025,120]
[344016708,1733207662271,-1750.91,0.00025,120]
[344016709,1733207662308,-1973.82,0.00025,120]
[344016710,1733207662346,-1635.5,0.00025,120]
[344016711,1733207662383,-1062.05,0.00025,120]
[344016712,1733207662420,-500.0,0.00025,120]
[344016713,1733207662456,-2018.19,0.00025,120]
[344016714,1733207662495,-2779.67,0.00025,120]
[344016715,1733207662531,-500.0,0.00025,120]
[344016716,1733207662569,-2067.76,0.00025,120]
[344016717,1733207662606,-6602.75,0.00025,120]
[344016718,1733207662642,-500.0,0.00025,120]
[344016719,1733207662680,-632.01,0.00025,120]
[344016720,1733207662719,-2591.2,0.00025,120]
[344016721,1733207662755,-500.0,0.00025,120]
[344016722,1733207662793,-500.0,0.00025,120]
[344016723,1733207662830,-2456.1,0.00025,120]
[344016724,1733207662867,-550.78,0.00025,120]
[344016725,1733207662904,-500.0,0.00025,120]
[344016726,1733207662941,-883.17,0.00025,120]
[344016727,1733207662978,-1947.38,0.00025,120]
[344016728,1733207663016,-500.0,0.00025,120]
[344016729,1733207663053,-500.0,0.00025,120]
[344016730,1733207663090,-500.0,0.00025,120]
[344016731,1733207663126,-4221.45,0.00025,120]
[344016732,1733207663162,-500.0,0.00025,120]
[344016733,1733207663200,-1187.17,0.00025,120]
[344016734,1733207663239,-1077.93,0.00025,120]
[344016735,1733207663282,-2015.07,0.00025,120]
[344016736,1733207663320,-500.0,0.00025,120]
[344016737,1733207663359,-1643.61,0.00025,120]
[344016738,1733207663396,-681.68,0.00025,120]
[344016739,1733207663435,-500.0,0.00025,120]
[344016740,1733207663472,-1105.21,0.00025,120]
[344016741,1733207663508,-1830.08,0.00025,120]
[344016742,1733207663545,-500.0,0.00025,120]
[344016743,1733207663582,-645.19,0.00025,120]
[344016744,1733207663623,-500.0,0.00025,120]
[344016745,1733207663663,-500.0,0.00025,120]
[344016746,1733207663700,-1133.3,0.00025,120]
[344016747,1733207663738,-1162.67,0.00025,120]
[344016748,1733207663778,-962.44,0.00025,120]
[344016749,1733207663816,-2528.32,0.00025,120]
[344016750,1733207663853,-767.12,0.00025,120]
[344016751,1733207663891,-588.15,0.00025,120]
[344016752,1733207663928,-323.47054117,0.00025,120]
[344016753,1733207663967,-2725.17,0.00025,120]
[344016754,1733207664006,-500.0,0.00025,120]
[344016755,1733207664046,-568.95,0.00025,120]
[344016756,1733207664084,-1406.47,0.00025,120]
[344016757,1733207664121,-500.0,0.00025,120]
[344016758,1733207664161,-500.0,0.00025,120]
[344016759,1733207664198,-6382.46,0.00025,120]
[344016760,1733207664235,-510.89986619,0.00025,120]
[344016761,1733207664275,-500.0,0.00025,120]
[344016762,1733207664312,-556.38965007,0.00025,120]
[344016763,1733207664351,-607.89977977,0.00025,120]
[344016764,1733207664388,-955.31,0.00025,120]
[344016765,1733207664425,-500.0,0.00025,120]
[344016766,1733207664464,-500.0,0.00025,120]
[344016767,1733207664502,-887.92,0.00025,120]
[344016768,1733207664546,-568.1,0.00025,120]
[344016769,1733207664585,-500.0,0.00025,120]
[344016770,1733207664626,-500.0,0.00025,120]
[344016771,1733207664665,-500.0,0.00025,120]
[344016772,1733207664706,-1049.14,0.00025,120]
[344016773,1733207664747,-2080.12,0.00025,120]
[344016774,1733207664785,-1303.05,0.00025,120]
[344016775,1733207664823,-2104.35,0.00025,120]
[344016776,1733207664862,-2626.2,0.00025,120]
[344016777,1733207664900,-771.01,0.00025,120]
[344016778,1733207664944,-4094.49,0.00025,120]
[344016779,1733207665335,-1990.25,0.00025,120]
[344016780,1733207665374,-500.0,0.00025,120]
[344016781,1733207665411,-2247.2,0.00025,120]
[344016782,1733207665449,-9047.66,0.00025,120]
[344016783,1733207665487,-529.95,0.00025,120]
[344016784,1733207665527,-4711.51,0.00025,120]
[344016785,1733207665564,-500.0,0.00025,120]
[344016786,1733207665603,-500.0,0.00025,120]
[344016787,1733207665640,-500.0,0.00025,120]
[344016788,1733207665677,-727.37,0.00025,120]
[344016789,1733207665716,-500.0,0.00025,120]
[344016790,1733207665756,-3620.79,0.00025,120]
[344016791,1733207665798,-500.0,0.00025,120]
[344016792,1733207665837,-2104.35,0.00025,120]
[344016793,1733207665875,-2437.49,0.00025,120]
[344016794,1733207665912,-2104.35,0.00025,120]
[344016795,1733207665949,-4508.52,0.00025,120]
[344016796,1733207665987,-500.0,0.00025,120]
[344016797,1733207666029,-500.0,0.00025,120]
[344016798,1733207666068,-2104.35,0.00025,120]
[344016799,1733207666108,-24732.35,0.00025,120]
[344016800,1733207666149,-2104.35,0.00025,120]
[344016801,1733207666190,-2741.58,0.00025,120]
[344016802,1733207666229,-2104.35,0.00025,120]
[344016803,1733207666270,-2104.35,0.00025,120]
[344016804,1733207666309,-575.2,0.00025,120]
[344016805,1733207666347,-2104.35,0.00025,120]
[344016806,1733207666386,-2104.35,0.00025,120]
[344016807,1733207666424,-500.0,0.00025,120]
[344016808,1733207666462,-500.0,0.00025,120]
[344016809,1733207666502,-2104.35,0.00025,120]
[344016810,1733207666541,-627.87,0.00025,120]
[344016811,1733207666579,-2104.35,0.00025,120]
[344016812,1733207666620,-2104.35,0.00025,120]
[344016813,1733207666659,-4195.44,0.00025,120]
[344016814,1733207666700,-2104.35,0.00025,120]
[344016815,1733207666737,-2104.35,0.00025,120]
[344016816,1733207666778,-1092.7,0.00025,120]
[344016817,1733207666815,-2104.35,0.00025,120]
[344016818,1733207666857,-500.0,0.00025,120]
[344016819,1733207666894,-500.0,0.00025,120]
[344016820,1733207666946,-2104.35,0.00025,120]
[344016821,1733207666989,-649.98,0.00025,120]
[344016822,1733207667031,-2104.35,0.00025,120]
[344016823,1733207667071,-528.41456367,0.00025,120]
[344016824,1733207667114,-500.0,0.00025,120]
[344016825,1733207667155,-2104.35,0.00025,120]
[344016826,1733207667196,-500.0,0.00025,120]
[344016827,1733207667237,-2104.35,0.00025,120]
[344016828,1733207667280,-1747.3,0.00025,120]
[344016829,1733207667321,-2104.35,0.00025,120]
[344016830,1733207667362,-2104.35,0.00025,120]
[344016831,1733207667402,-2104.35,0.00025,120]
[344016832,1733207667441,-2104.35,0.00025,120]
[344016833,1733207667482,-500.0,0.00025,120]
[344016834,1733207667522,-2104.44278231,0.00025,120]
[344016835,1733207667562,-1425.17,0.00025,120]
[344016836,1733207667602,-2402.56,0.00025,120]
[344016837,1733207667640,-1286.25,0.00025,120]
[344016838,1733207667681,-2043.66,0.00025,120]
[344016839,1733207667720,-6439.72,0.00025,120]
[344016840,1733207667759,-500.0,0.00025,120]
[344016841,1733207667800,-500.0,0.00025,120]
[344016842,1733207667841,-3000.76,0.00025,120]
[344016843,1733207667886,-4388.32,0.00025,120]
[344016844,1733207667930,-1086.7,0.00025,120]
[344016845,1733207667970,-500.0,0.00025,120]
[344016846,1733207668011,-500.0,0.00025,120]
[344016847,1733207668052,-500.0,0.00025,120]
[344016848,1733207668092,-822.01,0.00025,120]
[344016849,1733207668133,-721.99,0.00025,120]
[344016850,1733207668174,-1721.19,0.00025,120]
[344016851,1733207668215,-500.0,0.00025,120]
[344016852,1733207668257,-618.36,0.00025,120]
[344016853,1733207668304,-1086.23,0.00025,120]
[344016854,1733207668346,-178.77960399,0.00025,120]
[344016855,1733207668387,-500.0,0.00025,120]
[344016856,1733207668428,-500.0,0.00025,120]
[344016857,1733207668469,-2498.27,0.00025,120]
[344016858,1733207668511,-8666.15,0.00025,120]
[344016859,1733207668552,-500.0,0.00025,120]
[344016860,1733207668593,-500.0,0.00025,30]
[344016861,1733207668632,-1066.17,0.00025,120]
[344016862,1733207668673,-614.7,0.00025,120]
[344016863,1733207668712,-7393.34,0.00025,120]
[344016864,1733207668754,-500.0,0.00025,120]
[344016865,1733207668796,-620.08,0.00025,120]
[344016866,1733207668835,-2383.95,0.00025,120]
[344016867,1733207668875,-500.0,0.00025,120]
[344016868,1733207668913,-500.0,0.00025,120]
[344016869,1733207668952,-925.98,0.00025,120]
[344016870,1733207668990,-500.0,0.00025,120]
[344016871,1733207669033,-1067.52,0.00025,120]
[344016872,1733207669074,-502.16,0.00025,120]
[344016873,1733207669114,-500.0,0.00025,120]
[344016874,1733207669511,-768.58,0.00025,120]
[344016875,1733207669549,-2665.2,0.00025,120]
[344016876,1733207669585,-500.0,0.00025,120]
[344016877,1733207669628,-3074.37,0.00025,120]
[344016878,1733207669667,-500.0,0.00025,120]
[344016879,1733207669707,-1474.61,0.00025,120]
[344016880,1733207669744,-500.0,0.00025,120]
[344016881,1733207669787,-4726.82,0.00025,120]
[344016882,1733207669825,-2780.33,0.00025,120]
[344016883,1733207669864,-500.0,0.00025,120]
[344016884,1733207669903,-2325.77,0.00025,120]
[344016885,1733207669942,-1341.98,0.00025,120]
[344016886,1733207669983,-2083.41,0.00025,120]
[344016887,1733207670024,-500.0,0.00025,120]
[344016888,1733207670062,-2854.83,0.00025,120]
[344016889,1733207670101,-500.0,0.00025,120]
[344016890,1733207670139,-500.0,0.00025,120]
[344016891,1733207670180,-1610.77,0.00025,120]
[344016892,1733207670219,-5462.24,0.00025,120]
[344016893,1733207670259,-695.97,0.00025,120]
[344016894,1733207670298,-500.0,0.00025,120]
[344016895,1733207670336,-500.0,0.00025,120]
[344016896,1733207670375,-1083.69,0.00025,120]
[344016897,1733207670414,-500.0,0.00025,120]
[344016898,1733207670453,-2439.26,0.00025,120]
[344016899,1733207670491,-1569.86,0.00025,120]
[344016900,1733207670536,-500.0,0.00025,120]
[344016901,1733207670574,-3352.75,0.00025,120]
[344016902,1733207670615,-500.0,0.00025,120]
[344016903,1733207670655,-500.0,0.00025,120]
[344016904,1733207670696,-500.0,0.00025,120]
[344016905,1733207670733,-546.42,0.00025,120]
[344016906,1733207670776,-4452.73,0.00025,120]
[344016907,1733207670814,-4220.61,0.00025,120]
[344016908,1733207670852,-1087.29,0.00025,120]
[344016909,1733207670890,-1070.56,0.00025,120]
[344016910,1733207670929,-500.0,0.00025,120]
[344016911,1733207670967,-699.35,0.00025,120]
[344016912,1733207671007,-500.0,0.00025,120]
[344016913,1733207671047,-574.63,0.00025,120]
[344016914,1733207671087,-500.0,0.00025,120]
[344016915,1733207671126,-3050.22,0.00025,120]
[344016916,1733207671168,-710.38,0.00025,120]
[344016917,1733207671209,-500.0,0.00025,120]
[344016918,1733207671250,-500.0,0.00025,120]
[344016919,1733207671289,-500.0,0.00025,120]
[344016920,1733207671328,-10665.16,0.00025,120]
[344016921,1733207671368,-500.0,0.00025,120]
[344016922,1733207671407,-2587.35,0.00025,120]
[344016923,1733207671446,-503.26718726,0.00025,120]
[344016924,1733207671485,-3838.3,0.00025,120]
[344016925,1733207671524,-2124.01,0.00025,120]
[344016926,1733207671563,-1069.79,0.00025,120]
[344016927,1733207671601,-500.0,0.00025,120]
[344016928,1733207671641,-1147.6,0.00025,120]
[344016929,1733207671679,-2125.97,0.00025,120]
[344016930,1733207671717,-500.0,0.00025,120]
[344016931,1733207671759,-2739.36,0.00025,120]
[344016932,1733207671797,-628.56,0.00025,120]
[344016933,1733207671835,-1230.07,0.00025,120]
[344016934,1733207671873,-548.09616251,0.00025,120]
[344016935,1733207671911,-500.0,0.00025,120]
[344016936,1733207671950,-11437.99,0.00025,120]
[344016937,1733207671990,-1469.55,0.00025,120]
[344016938,1733207672034,-507.01,0.00025,120]
[344016939,1733207672075,-3475.03,0.00025,120]
[344016940,1733207672115,-15969.07,0.00025,120]
[344016941,1733207672155,-500.0,0.00025,120]
[344016942,1733207672194,-500.0,0.00025,120]
[344016943,1733207672234,-500.0,0.00025,120]
[344016944,1733207672278,-1757.08,0.00025,120]
[344016945,1733207672317,-2457.98,0.00025,120]
[344016946,1733207672356,-610.44,0.00025,120]
[344016947,1733207672395,-500.0,0.00025,120]
[344016948,1733207672434,-500.0,0.00025,120]
[344016949,1733207672471,-500.0,0.00025,120]
[344016950,1733207672509,-500.0,0.00025,120]
[344016951,1733207672548,-3691.23,0.00025,120]
[344016952,1733207672592,-1743.92,0.00025,120]
[344016953,1733207672633,-500.0,0.00025,120]
[344016954,1733207672671,-610.78,0.00025,120]
[344016955,1733207672711,-500.0,0.00025,120]
[344016956,1733207672751,-2039.81,0.00025,120]
[344016957,1733207672795,-2180.21,0.00025,120]
[344016958,1733207672835,-772.87,0.00025,120]
[344016959,1733207672873,-5990.67,0.00025,120]
[344016960,1733207672911,-500.0,0.00025,120]
[344016961,1733207672949,-500.0,0.00025,120]
[344016962,1733207672988,-500.0,0.00025,120]
[344016963,1733207673030,-500.0,0.00025,120]
[344016964,1733207673071,-500.0,0.00025,120]
[344016965,1733207673111,-500.0,0.00025,120]
[344016966,1733207673151,-944.85,0.00025,120]
[344016967,1733207673191,-773.53,0.00025,120]
[344016968,1733207673559,-1412.27,0.00025,120]
[344016969,1733207673601,-19875.26,0.00025,120]
[344016970,1733207673643,-500.0,0.00025,120]
[344016971,1733207673683,-500.0,0.00025,30]
[344016972,1733207673722,-595.85,0.00025,120]
[344016973,1733207673764,-595.85,0.00025,120]
[344016974,1733207673802,-676.76,0.00025,120]
[344016975,1733207673841,-500.0,0.00025,120]
[344016976,1733207673878,-595.85,0.00025,120]
[344016977,1733207673916,-526.92910832,0.00025,120]
[344016978,1733207673954,-595.85,0.00025,120]
[344016979,1733207673993,-568.86447409,0.00025,120]
[344016980,1733207674037,-595.85,0.00025,120]
[344016981,1733207674077,-595.85,0.00025,120]
[344016982,1733207674115,-500.0,0.00025,120]
[344016983,1733207674155,-595.85,0.00025,120]
[344016984,1733207674194,-595.85,0.00025,120]
[344016985,1733207674233,-595.85,0.00025,120]
[344016986,1733207674271,-500.0,0.00025,120]
[344016987,1733207674312,-1101.71,0.00025,120]
[344016988,1733207674350,-595.85,0.00025,120]
[344016989,1733207674389,-500.0,0.00025,120]
[344016990,1733207674428,-595.85,0.00025,120]
[344016991,1733207674466,-595.85,0.00025,120]
[344016992,1733207674503,-4144.29,0.00025,120]
[344016993,1733207674542,-511.79,0.00025,120]
[344016994,1733207674581,-595.85,0.00025,120]
[344016995,1733207674619,-595.85,0.00025,120]
[344016996,1733207674658,-595.85,0.00025,120]
[344016997,1733207674699,-2158.79,0.00025,120]
[344016998,1733207674739,-595.85,0.00025,120]
[344016999,1733207674783,-595.85,0.00025,120]
[344017000,1733207674822,-509.74821147,0.00025,120]
[344017001,1733207674859,-500.0,0.00025,120]
[344017002,1733207674897,-595.85,0.00025,120]
[344017003,1733207674935,-500.0,0.00025,120]